Cogmind - Beta 14 @@@ ROGUE MODE // 2024.08.09 @ 02:25:09 Player: Nell Result: Destroyed by G-67 Veteran with Field Laser Performance ------------- Evolutions (6) 3000 Regions Visited (16) 3200 Robots Destroyed (49) 245 Value Destroyed (1626) 1626 Prototype IDs (27) 540 Alien Tech Used (0) 0 Bonus (2800) 2800 TOTAL SCORE: 11411 Bonus ------- High Alert Combat Kills 146 Follower Combat Kills 1054 Entered DSFs 1000 Aligned with FarCom 300 Acquired ECA 300 Cogmind --------- Core Integrity 0/1150 Matter 161/300 Energy 99/100 System Corruption 1% Temperature Cool (3) Movement Flying (35) Location -4/Upper Caves Parts ------- > --- POWER (2) -------- (None) > --- PROPULSION (4) --- VTOL Module > --- UTILITY (10) ----- (None) > --- WEAPON (3) ------- (None) > --- INVENTORY (5) ---- (None) Peak State ------------ > --- POWER ------------ Neutrino Core Antimatter Reactor > --- PROPULSION ------- Heavy Treads Heavy Treads > --- UTILITY ---------- Advanced Heat Sink Large Storage Unit Hardened Light Armor Plating Damper Plating Improved Remote Shield Hacking Suite Improved Dynamic Insulation System > --- WEAPON ----------- Heavy Beamcaster Hypervelocity Railgun Light Antimatter Cannon > --- INVENTORY -------- Light Fission Core Micro Fission Core Micro Fission Core Micro Fission Core Biometal Leg Centrium Leg Wheel Improved Kinecellerator Improved Weapon Cycler Improved Weapon Cycler Improved Weapon Cycler Wave Gun [Rating: 114] Favorites ----------- Power Micro Fission Core Engine Makeshift Power Source Power Core Micro Fission Core Reactor Antimatter Reactor Propulsion Aluminum Leg Treads Heavy Treads Leg Aluminum Leg Wheel Wheel Hover Unit Backup Propulsion III Flight Unit Q-thruster Utility Hacking Suite Device Advanced Heat Sink Storage Large Storage Unit Processor Improved Launcher Guidance Computer Hackware Hacking Suite Protection Core Shielding Weapon Assault Rifle Energy Gun Heavy Beamcaster Ballistic Gun Assault Rifle Ballistic Cannon Light Antimatter Cannon Launcher Mini Grenade Launcher Impact Weapon Impact Mace Slashing Weapon Scythe Build | -11 -10 -10 -10 -9 -8 -7 -6 -6 -6 -6 -5 -5 -5 -5 -4 -4 ------- Run | Yrd Mat Min Exi Min Mat Fac Fac Was Fac DSF Fac Was Fac DSF Fac Upp Slots Evolved 12 | . . . . . 4 2 2 . . . 2 . . . 2 . Power 1 | . . . . . 1 . . . . . . . . . . . Propulsion 2 | . . . . . 1 . 1 . . . . . . . . . Utility 8 | . . . . . 2 2 1 . . . 1 . . . 2 . Weapon 1 | . . . . . . . . . . . 1 . . . . . Parts Attached 133 | 8 1 1 2 1 21 9 7 3 . 2 28 9 . 2 10 29 Power 20 | 1 . . . . 4 . 3 . . . 5 . . 1 2 4 Engine 5 | 1 . . . . 2 . 1 . . . 1 . . . . . Core 12 | . . . . . 2 . 2 . . . 4 . . . 1 3 Reactor 3 | . . . . . . . . . . . . . . 1 1 1 Propulsion 30 | 2 . . . . 5 2 1 3 . . 6 3 . . 4 4 Treads 7 | . . . . . . . . 1 . . . 2 . . 4 . Leg 18 | 2 . . . . 4 2 1 1 . . 5 1 . . . 2 Wheel 3 | . . . . . 1 . . . . . 1 . . . . 1 Hover . | . . . . . . . . . . . . . . . . . Flight 2 | . . . . . . . . 1 . . . . . . . 1 Utility 47 | 2 1 . 2 . 4 2 3 . . 2 9 2 . 1 4 15 Device 28 | 1 . . 1 . 2 2 . . . . 5 1 . 1 3 12 Storage 5 | 1 . . . . 1 . 1 . . . 1 . . . . 1 Processor 2 | . . . . . . . . . . . 2 . . . . . Hackware 3 | . . . . . . . . . . 2 1 . . . . . Protection 9 | . 1 . 1 . 1 . 2 . . . . 1 . . 1 2 Artifact . | . . . . . . . . . . . . . . . . . Weapon 36 | 3 . 1 . 1 8 5 . . . . 8 4 . . . 6 Energy Gun 9 | 1 . . . . . . . . . . 5 1 . . . 2 Energy Cannon . | . . . . . . . . . . . . . . . . . Ballistic Gun 12 | 2 . 1 . 1 1 2 . . . . . 1 . . . 4 Ballistic Cannon 9 | . . . . . 5 1 . . . . 1 2 . . . . Launcher 3 | . . . . . 2 1 . . . . . . . . . . Special Weapon . | . . . . . . . . . . . . . . . . . Impact Weapon 2 | . . . . . . 1 . . . . 1 . . . . . Slashing Weapon 1 | . . . . . . . . . . . 1 . . . . . Piercing Weapon . | . . . . . . . . . . . . . . . . . Special Melee Weapon . | . . . . . . . . . . . . . . . . . Unidentified Prototypes 4 | . . . . . 1 2 . . . . . 1 . . . . Parts Lost 31 | . . . . . . . . 2 . 2 12 . . . . 15 Power 4 | . . . . . . . . 1 . . 2 . . . . 1 Propulsion 10 | . . . . . . . . . . 2 6 . . . . 2 Utility 12 | . . . . . . . . 1 . . 3 . . . . 8 Weapon 5 | . . . . . . . . . . . 1 . . . . 4 Highest Loss Streak 6 | . . . . . . . . 2 . 2 6 . . . . 6 To Critical Strikes . | . . . . . . . . . . . . . . . . . Average Slot Usage (%) 72 | . 100 100 100 100 97 100 97 58 . 26 36 89 88 88 73 47 Engine 4 | . 14 14 14 14 10 7 5 3 . . . . . . . . Core 4 | . . . . . 7 7 6 3 . . 3 11 11 8 5 3 Treads 2 | . . . . . . . . 1 . 3 . 2 11 11 10 3 Leg 12 | . 28 28 28 28 25 23 26 14 . 6 7 2 . . . 3 Device 10 | . 4 . . . 8 23 20 10 . . 4 18 17 17 15 16 Storage 5 | . 14 14 14 14 9 7 6 3 . . . 5 5 5 5 2 Processor 2 | . . . . . . . . . . . 3 11 11 11 . . Hackware 3 | . . . . . . . . . . 13 8 5 5 5 5 . Protection 7 | . 9 14 14 14 16 15 18 11 . . . 3 5 5 9 1 Energy Gun 2 | . . . . . . . . . . . 1 7 5 5 5 2 Ballistic Gun 7 | . 28 28 28 28 7 9 13 7 . . . 4 5 5 5 5 Ballistic Cannon 2 | . . . . . 8 6 . . . . . 2 5 5 5 1 Peak Build Rating 114 | 9 9 7 14 9 37 48 57 56 26 33 62 96 96 99 114 112 Average Rating 45 | 6 7 7 7 8 32 45 54 35 26 20 28 80 96 98 112 53 On Entrance 41 | . 9 7 7 8 9 37 48 55 26 26 11 62 96 96 99 112 Naked Turns 190 | . . . . . . . . 12 . . . . . . . 178 Heaviest Build 129 | 15 15 15 15 16 43 42 60 60 . . 57 66 63 75 129 124 Greatest Support 140 | 20 20 20 20 20 44 53 71 71 3 3 57 140 140 140 140 135 Greatest Overweight (x) 7 | 1 . . . . . . . 1 . . 7 6 . . 1 5 Average Overweight (x) . | . . . . . . . . . . . 1 3 . . . . Largest Inventory Capacity 15 | 8 8 8 8 8 10 10 15 15 5 5 15 15 15 15 15 15 Average Capacity 9 | 7 8 8 8 8 8 10 10 10 5 5 6 15 15 15 15 9 Most Carried 15 | 4 5 6 7 8 10 10 10 13 4 5 5 14 14 15 15 15 Average Carried 7 | 3 4 5 6 7 8 9 9 7 4 4 3 7 14 14 11 6 Final Capacity 15 | 8 8 8 8 8 10 10 15 5 5 5 15 15 15 15 15 5 Final Carried 15 | 4 5 6 7 8 10 10 10 4 4 5 4 14 14 15 15 . Class Distribution -------------------- 48% | Mutant 15% | Skirmisher 14% | Hacker-Mutant 8% | Scavenger-Tank 5% | Scavenger-Gunner 5% | Scavenger-Skirmisher Dominant Class ---------------- Mutant | -10/Materials Mutant | -10/Mines Mutant | -10/Exiles Mutant | -9/Mines Mutant | -8/Materials Mutant | -7/Factory Mutant | -6/Factory Mutant | -6/Waste Mutant | -6/Factory Hacker-Mutant | -6/DSF Hacker-Mutant | -5/Factory Skirmisher | -5/Waste Scavenger-Skirmisher | -5/Factory Scavenger-Skirmisher | -5/DSF Scavenger-Tank | -4/Factory Scavenger-Gunner | -4/Upper Caves Resources | -11 -10 -10 -10 -9 -8 -7 -6 -6 -6 -6 -5 -5 -5 -5 -4 -4 ----------- Run | Yrd Mat Min Exi Min Mat Fac Fac Was Fac DSF Fac Was Fac DSF Fac Upp Matter Collected 2267 | 274 . 44 . 59 464 66 . . . . 474 242 . 20 360 264 Remotely . | . . . . . . . . . . . . . . . . . Salvage Created 1613 | 50 24 . . . 358 70 . . . . 438 . . . 449 224 Parts 84 | 9 5 . . . 22 3 . . . . 12 . . . 17 16 Haulers Intercepted 6 | . . . . . 4 . . . . . 1 . . . 1 . Recyclers Shooed 3 | . . . . . . 1 . . . . 2 . . . . . Parts Field Recycled . | . . . . . . . . . . . . . . . . . Retrieved Matter . | . . . . . . . . . . . . . . . . . Parts Self-Destructed 14 | . . . . . . . . . . . . . . . . 14 Prevented . | . . . . . . . . . . . . . . . . . Kills | -11 -10 -10 -10 -9 -8 -7 -6 -6 -6 -6 -5 -5 -5 -5 -4 -4 ------- Run | Yrd Mat Min Exi Min Mat Fac Fac Was Fac DSF Fac Was Fac DSF Fac Upp Combat Hostiles Destroyed 34 | . 2 . . . 9 . . . . . 8 . . . 7 8 Melee 2 | . . . . . . . . . . . 2 . . . . . Guns 16 | . 2 . . . 4 . . . . . 1 . . . 3 6 Cannons 10 | . . . . . 3 . . . . . 3 . . . 2 2 AOE 5 | . . . . . 2 . . . . . 1 . . . 2 . Classes Destroyed 11 | 1 1 . . . 5 1 . . . . 3 . . . . . Worker 2 | . . . . . 1 . . . . . 1 . . . . . Builder 1 | . . . . . . . . . . . 1 . . . . . Tunneler 3 | 3 . . . . . . . . . . . . . . . . Hauler 6 | . . . . . 4 . . . . . 1 . . . 1 . Recycler 2 | . . . . . 1 1 . . . . . . . . . . Operator 1 | . . . . . . 1 . . . . . . . . . . Swarmer 16 | . 2 . . . 5 . . . . . . . . . 3 6 Grunt 7 | . . . . . 3 . . . . . 4 . . . . . Sentry 3 | . . . . . 1 . . . . . 1 . . . 1 . Hunter 4 | . . . . . . . . . . . 1 . . . 1 2 Programmer 4 | . . . . . . . . . . . 2 . . . 2 . Best Kill Streak 3 | 2 2 . . . 3 1 . . . . 3 . . . 3 3 Combat Bots Only 3 | . 2 . . . 3 . . . . . 3 . . . 3 3 Max Kills in Single Turn 2 | 1 1 . . . 2 1 . . . . 1 . . . 2 1 Gunslinging . | . . . . . . . . . . . . . . . . . Exploded 2 | . . . . . 1 . . . . . 1 . . . 2 . Melee 1 | . . . . . . . . . . . 1 . . . . . Uniques/NPCs Destroyed . | . . . . . . . . . . . . . . . . . Combat | -11 -10 -10 -10 -9 -8 -7 -6 -6 -6 -6 -5 -5 -5 -5 -4 -4 -------- Run | Yrd Mat Min Exi Min Mat Fac Fac Was Fac DSF Fac Was Fac DSF Fac Upp Hostile Shots Fired 541 | . 19 . . . 37 . . 3 . 1 141 . . 5 52 283 Missed 188 | . 7 . . . 9 . . 1 . . 35 . . 2 11 123 Damage Taken 6152 | . 91 . . . 317 . . 67 . 57 2240 . . 48 623 2709 Core 2043 | . 20 . . . 32 . . . . 17 819 . . . 184 971 Absorbed by Shields 255 | . . . . . . . . . . . . . . 14 127 114 Redirected to Shielding 55 | . 2 . . . 53 . . . . . . . . . . . Ignored by Resistances 219 | . . . . . . . . 17 . . . . . . 202 . Regen/Repaired (Parts) 157 | . . . . . . . 69 . . . . 58 . 14 16 . Core Remaining (%) 83 | 100 . . . 92 94 100 . . . 98 . . . 18 . . Volleys Fired 116 | 5 6 . . . 36 3 . . . . 24 . . . 18 24 Largest 3 | 2 2 . . . 2 2 . . . . 2 . . . 3 3 Hottest 222 | 40 40 . . . 88 88 . . . . 162 . . . 181 222 Shots Fired 238 | 10 12 . . . 71 6 . . . . 29 . . . 48 62 Gun 142 | 10 12 . . . 30 . . . . . 13 . . . 34 43 Cannon 93 | . . . . . 38 6 . . . . 16 . . . 14 19 Launcher 3 | . . . . . 3 . . . . . . . . . . . Special . | . . . . . . . . . . . . . . . . . Kinetic 173 | 10 12 . . . 68 6 . . . . 16 . . . 32 29 Thermal 62 | . . . . . . . . . . . 13 . . . 16 33 Explosive 3 | . . . . . 3 . . . . . . . . . . . Electromagnetic . | . . . . . . . . . . . . . . . . . Robot Hit Streak 8 | 2 3 . . . 6 4 . . . . 8 . . . 4 6 Robot Miss Streak 4 | 3 3 . . . 4 1 . . . . 2 . . . 3 4 Penetration Max 1 | . . . . . . . . . . . . . . . 1 . Secondary Targets 1 | . 1 . . . . . . . . . . . . . . . Max Gunslinging Chain 1 | . 1 . . . . . . . . . . . . . . . Shots Hit Robots 155 | 4 5 . . . 46 5 . . . . 40 . . . 23 32 Core Hits 92 | 3 3 . . 1 33 4 . . . . 15 . . . 18 15 Critical Kills 3 | . . . . . . . . . . . 1 . . . 2 . Critical Parts Destroyed 8 | . . . . . . . . . . . 5 . . . 3 . Critical Strikes 15 | . . . . . 1 . . . . . 8 . . . 5 1 Burn 1 | . . . . . . . . . . . . . . . . 1 Destroy 5 | . . . . . . . . . . . . . . . 5 . Blast 2 | . . . . . 1 . . . . . 1 . . . . . Smash 6 | . . . . . . . . . . . 6 . . . . . Sever 1 | . . . . . . . . . . . 1 . . . . . Melee Attacks 27 | . . . . . . . . . . . 27 . . . . . Impact 23 | . . . . . . . . . . . 23 . . . . . Slashing 4 | . . . . . . . . . . . 4 . . . . . Piercing . | . . . . . . . . . . . . . . . . . Sneak Attacks 4 | . . . . . . . . . . . 4 . . . . . Combat Hostiles . | . . . . . . . . . . . . . . . . . Follow-up Attacks . | . . . . . . . . . . . . . . . . . Damage Inflicted 4772 | 61 71 11 . 17 1159 149 . . . . 1901 . . . 629 774 Guns 1331 | 61 71 . . . 261 . . . . . 238 . . . 251 449 Cannons 1685 | . . . . . 598 123 . . . . 351 . . . 288 325 Explosions 557 | . . . . . 231 . . . . . 238 . . . 88 . Melee 1051 | . . . . . . . . . . . 1051 . . . . . Ramming 148 | . . 11 . 17 69 26 . . . . 23 . . . 2 . Kinetic 2242 | 61 71 . . . 859 123 . . . . 351 . . . 372 405 Thermal 774 | . . . . . . . . . . . 238 . . . 167 369 Explosive 469 | . . . . . 231 . . . . . 238 . . . . . Electromagnetic 88 | . . . . . . . . . . . . . . . 88 . Impact 923 | . . . . . . . . . . . 923 . . . . . Slashing 128 | . . . . . . . . . . . 128 . . . . . Piercing . | . . . . . . . . . . . . . . . . . Highest Corruption 6 | . . . . . . . . . . . 6 6 6 6 1 1 Average Corruption 3 | . . . . . . . . . . . 5 6 6 6 1 1 Corruption Purged . | . . . . . . . . . . . . . . . . . Corruption Blocked . | . . . . . . . . . . . . . . . . . Effects 60 | . . . . . . . . . . . 24 19 1 1 5 10 Message Errors 11 | . . . . . . . . . . . 4 3 1 . 1 2 Matter Fused 8 | . . . . . . . . . . . 3 5 . . . . Heat Flow Errors 4 | . . . . . . . . . . . 1 3 . . . . Energy Discharges 11 | . . . . . . . . . . . 6 4 . . 1 . Parts Rejected 2 | . . . . . . . . . . . 1 . . . 1 . Parts Fused 4 | . . . . . . . . . . . 2 2 . . . . Data Loss (minor) 7 | . . . . . . . . . . . 4 . . . . 3 Data Loss (major) 6 | . . . . . . . . . . . . 2 . 1 2 1 Misfires 3 | . . . . . . . . . . . 1 . . . . 2 Alerts 4 | . . . . . . . . . . . 2 . . . . 2 Overload Shots . | . . . . . . . . . . . . . . . . . Overflow Damage 422 | . . . . . 2 19 . . . . 401 . . . . . Projectiles 21 | . . . . . 2 19 . . . . . . . . . . Explosions . | . . . . . . . . . . . . . . . . . Melee 401 | . . . . . . . . . . . 401 . . . . . Knockbacks 31 | . . . . . 10 1 . . . . 10 . . . 4 6 Impact 6 | . . . . . 2 1 . . . . 3 . . . . . Kinetic 22 | . . . . . 7 . . . . . 6 . . . 3 6 Secondary 3 | . . . . . 1 . . . . . 1 . . . 1 . Self-Inflicted Damage 112 | . . . . . . . . . . . 112 . . . . . Shots 1 | . . . . . . . . . . . 1 . . . . . Rammed 7 | . . . . . . . . . . . 6 . . . 1 . Targets Rammed 41 | . . 2 . 5 15 4 . . . . 14 . . . 1 . Kicked 34 | . . 2 . 5 15 4 . . . . 8 . . . . . Crushed . | . . . . . . . . . . . . . . . . . Highest Temperature 672 | . . . . . 333 108 . . . . 262 186 . . 672 432 Average Temperature 142 | . . . . . 95 55 . . . . 55 87 . . 235 186 Received Heat Transfer 592 | . . . . . 99 . . . . . 414 . . 7 . 72 Effects 36 | . . . . . . . . . . . . . . . 33 3 Shutdowns 10 | . . . . . . . . . . . . . . . 8 2 Energy Bleed 3 | . . . . . . . . . . . . . . . 3 . Interference 8 | . . . . . . . . . . . . . . . 8 . Matter Decay 2 | . . . . . . . . . . . . . . . 2 . Short Circuit 1 | . . . . . . . . . . . . . . . 1 . Damage (minor) 3 | . . . . . . . . . . . . . . . 2 1 Damage (major) 8 | . . . . . . . . . . . . . . . 8 . Damage (core) 1 | . . . . . . . . . . . . . . . 1 . Siege Activations . | . . . . . . . . . . . . . . . . . Robots Corrupted 2 | . . . . . . . . . . . 2 . . . . . Combat Hostiles 1 | . . . . . . . . . . . 1 . . . . . Parts Fried 3 | . . . . . . . . . . . 3 . . . . . Impact Corruptions 12 | . . . . . . . . . . . 12 . . . . . Robots Melted . | . . . . . . . . . . . . . . . . . Combat Hostiles . | . . . . . . . . . . . . . . . . . Parts Melted 1 | . . . . . . . . . . . 1 . . . . . Heat Transferred 1295 | . . . . . . . . . . . 370 . . . 259 666 Parts Sabotaged . | . . . . . . . . . . . . . . . . . Parts Stolen . | . . . . . . . . . . . . . . . . . Parts Stripped . | . . . . . . . . . . . . . . . . . Power Chain Reactions . | . . . . . . . . . . . . . . . . . Alert | -11 -10 -10 -10 -9 -8 -7 -6 -6 -6 -6 -5 -5 -5 -5 -4 -4 ------- Run | Yrd Mat Min Exi Min Mat Fac Fac Was Fac DSF Fac Was Fac DSF Fac Upp Peak Influence 1031 | 15 89 34 . . 247 83 47 16 . 15 230 21 . 471 1031 . Initial 247 | . 9 34 . . . 73 40 16 . . 7 21 . . 247 . Average 143 | 4 61 34 . . 83 79 45 7 . 2 57 12 . 285 874 . Maximum Alert Level 3 | . . . . . 1 . . . . . 1 . . 2 3 . Low Security (%) 84 | 100 100 100 . 100 91 100 100 100 100 100 95 100 100 27 . . Level 1 4 | . . . . . 8 . . . . . 4 . . 41 2 . Level 2 1 | . . . . . . . . . . . . . . 30 6 . Level 3 9 | . . . . . . . . . . . . . . . 91 . Level 4 . | . . . . . . . . . . . . . . . . . Level 5 . | . . . . . . . . . . . . . . . . . High Security . | . . . . . . . . . . . . . . . . . Max Security . | . . . . . . . . . . . . . . . . . Sterilizations 1 | . . . . . . . . . . . . . . 1 . . Squads Dispatched 18 | . . . . . 5 . . . . 1 2 . 1 2 7 . Investigation 4 | . . . . . 2 . . . . . 1 . . . 1 . Extermination 2 | . . . . . . . . . . . 1 . . . 1 . Reinforcement 8 | . . . . . 2 . . . . 1 . . 1 2 2 . Assault . | . . . . . . . . . . . . . . . . . Garrison 4 | . . . . . 1 . . . . . . . . . 3 . Intercept . | . . . . . . . . . . . . . . . . . Searches Triggered . | . . . . . . . . . . . . . . . . . Construction Impeded 1 | . . . . . . . . . . . . . . . 1 . Haulers Reinforced 1 | . . . . . . . . . . . . . . . 1 . Active Scanning Responses . | . . . . . . . . . . . . . . . . . Cargo Convoy Interrupts . | . . . . . . . . . . . . . . . . . Stealth | -11 -10 -10 -10 -9 -8 -7 -6 -6 -6 -6 -5 -5 -5 -5 -4 -4 --------- Run | Yrd Mat Min Exi Min Mat Fac Fac Was Fac DSF Fac Was Fac DSF Fac Upp Distress Signals 7 | . 1 . . . 2 . . . . . 2 . . . 2 . Communications Jammed . | . . . . . . . . . . . . . . . . . Distress Signals . | . . . . . . . . . . . . . . . . . Times Spotted 102 | . 6 . . . 21 1 . 5 . 1 17 1 . 4 17 29 Peak Tracking Total 14 | . 5 . . . 4 1 . 6 . 1 5 1 . 2 7 14 Tactical Retreats 10 | . . . . . 2 . . . . 1 1 . . . . 6 Traps | -11 -10 -10 -10 -9 -8 -7 -6 -6 -6 -6 -5 -5 -5 -5 -4 -4 ------- Run | Yrd Mat Min Exi Min Mat Fac Fac Was Fac DSF Fac Was Fac DSF Fac Upp Traps Triggered 4 | . . . . . . . 1 . . . 2 . . 1 . . Indirectly . | . . . . . . . . . . . . . . . . . Trap Hack Attempts . | . . . . . . . . . . . . . . . . . Triggered . | . . . . . . . . . . . . . . . . . Disarmed . | . . . . . . . . . . . . . . . . . Reprogrammed . | . . . . . . . . . . . . . . . . . Reused . | . . . . . . . . . . . . . . . . . Traps Extracted . | . . . . . . . . . . . . . . . . . Installed . | . . . . . . . . . . . . . . . . . Triggered . | . . . . . . . . . . . . . . . . . Machines | -11 -10 -10 -10 -9 -8 -7 -6 -6 -6 -6 -5 -5 -5 -5 -4 -4 ---------- Run | Yrd Mat Min Exi Min Mat Fac Fac Was Fac DSF Fac Was Fac DSF Fac Upp Machines Disabled 12 | . . . . . 1 . . . . . 2 . . 1 8 . Max in Single Turn 2 | . . . . . 1 . . . . . 1 . . . 2 . Garrison Access 2 | . . . . . 1 1 . . . . . . . . . . Machines Repaired . | . . . . . . . . . . . . . . . . . Machines Dismantled . | . . . . . . . . . . . . . . . . . Machines Sabotaged . | . . . . . . . . . . . . . . . . . Overloaded Fab Kills . | . . . . . . . . . . . . . . . . . Hacking | -11 -10 -10 -10 -9 -8 -7 -6 -6 -6 -6 -5 -5 -5 -5 -4 -4 --------- Run | Yrd Mat Min Exi Min Mat Fac Fac Was Fac DSF Fac Was Fac DSF Fac Upp Machines Accessed 19 | . . 1 1 . 4 3 1 . 1 . 4 . 1 . 2 1 Terminals 10 | . . 1 . . 3 1 . . 1 . 1 . 1 . 2 . Fabricators . | . . . . . . . . . . . . . . . . . Repair Stations 1 | . . . . . . . 1 . . . . . . . . . Recycling Units 3 | . . . . . . 1 . . . . 2 . . . . . Scanalyzers . | . . . . . . . . . . . . . . . . . Garrison Access 3 | . . . . . 1 1 . . . . 1 . . . . . Total Hacks 41 | . . 3 1 . 7 7 5 . 2 . 8 . 3 . 4 1 Successful 18 | . . 1 1 . 2 3 4 . 1 . 4 . 1 . . 1 Failed 23 | . . 2 . . 5 4 1 . 1 . 4 . 2 . 4 . Catastrophic 3 | . . . . . 1 . . . . . . . . . 2 . Database Lockouts . | . . . . . . . . . . . . . . . . . Manual 9 | . . 1 1 . 3 . . . . . 2 . . . 2 . Terminals 21 | . . 3 . . 6 1 . . 2 . 2 . 3 . 4 . Fabricators . | . . . . . . . . . . . . . . . . . Repair Stations 5 | . . . . . . . 5 . . . . . . . . . Recycling Units 8 | . . . . . . 4 . . . . 4 . . . . . Scanalyzers . | . . . . . . . . . . . . . . . . . Garrison Access 5 | . . . . . 1 2 . . . . 2 . . . . . Terminal Hacks 7 | . . 1 1 . 1 . . . 1 . 1 . 1 . . 1 Record 1 | . . . . . . . . . . . 1 . . . . . Open Door 1 | . . . . . . . . . . . . . . . . 1 Open DSF 2 | . . . . . . . . . 1 . . . 1 . . . Recall Investigation 1 | . . . . . 1 . . . . . . . . . . . Zone Layout 1 | . . 1 . . . . . . . . . . . . . . Derelict Proto ID Bank 1 | . . . 1 . . . . . . . . . . . . . Fabricator Hacks . | . . . . . . . . . . . . . . . . . Repair Station Hacks 4 | . . . . . . . 4 . . . . . . . . . Scan Component 2 | . . . . . . . 2 . . . . . . . . . Repair 2 | . . . . . . . 2 . . . . . . . . . Recycling Unit Hacks 5 | . . . . . . 2 . . . . 3 . . . . . Recycle Component 1 | . . . . . . . . . . . 1 . . . . . Process 1 | . . . . . . 1 . . . . . . . . . . Retrieve Matter 2 | . . . . . . 1 . . . . 1 . . . . . Retrieve Components 1 | . . . . . . . . . . . 1 . . . . . Scanalyzer . | . . . . . . . . . . . . . . . . . Garrison Access Hacks 2 | . . . . . 1 1 . . . . . . . . . . Seal Access 2 | . . . . . 1 1 . . . . . . . . . . Unauthorized Hacks . | . . . . . . . . . . . . . . . . . Terminals . | . . . . . . . . . . . . . . . . . Fabricators . | . . . . . . . . . . . . . . . . . Repair Stations . | . . . . . . . . . . . . . . . . . Recycling Units . | . . . . . . . . . . . . . . . . . Scanalyzers . | . . . . . . . . . . . . . . . . . Garrison Access . | . . . . . . . . . . . . . . . . . Data Cores Recovered 1 | . . . . . . 1 . . . . . . . . . . Used 1 | . . . . . . 1 . . . . . . . . . . Hacking Detections 12 | . . 1 . . 2 1 1 . 1 . 3 . 1 . 2 . Full Trace Events 4 | . . . . . 2 . . . . . 1 . . . 1 . Feedback Events 2 | . . . . . . . . . . . 1 . . . 1 . Corruption 2 | . . . . . . . . . . . 1 . . . 1 . Feedback Blocked . | . . . . . . . . . . . . . . . . . Robot Schematics Acquired . | . . . . . . . . . . . . . . . . . Robots Built . | . . . . . . . . . . . . . . . . . Authchips . | . . . . . . . . . . . . . . . . . Time . | . . . . . . . . . . . . . . . . . Total Robot Build Rating . | . . . . . . . . . . . . . . . . . Part Schematics Acquired . | . . . . . . . . . . . . . . . . . Parts Built . | . . . . . . . . . . . . . . . . . Authchips . | . . . . . . . . . . . . . . . . . Time . | . . . . . . . . . . . . . . . . . Total Part Build Rating . | . . . . . . . . . . . . . . . . . Parts Repaired 2 | . . . . . . . 2 . . . . . . . . . Time 82 | . . . . . . . 82 . . . . . . . . . Parts Recycled 1 | . . . . . . . . . . . 1 . . . . . Recycled Matter 17 | . . . . . . 17 . . . . . . . . . . Retrieved Matter 17 | . . . . . . 17 . . . . . . . . . . Retrieved Components 7 | . . . . . . . . . . . 7 . . . . . Parts Scanalyzed . | . . . . . . . . . . . . . . . . . Part Schematics Acquired . | . . . . . . . . . . . . . . . . . Parts Damaged . | . . . . . . . . . . . . . . . . . Bothacking | -11 -10 -10 -10 -9 -8 -7 -6 -6 -6 -6 -5 -5 -5 -5 -4 -4 ------------ Run | Yrd Mat Min Exi Min Mat Fac Fac Was Fac DSF Fac Was Fac DSF Fac Upp Used RIF Installer . | . . . . . . . . . . . . . . . . . Robots Hacked . | . . . . . . . . . . . . . . . . . Non-combat . | . . . . . . . . . . . . . . . . . Combat . | . . . . . . . . . . . . . . . . . Robot Hacks Applied . | . . . . . . . . . . . . . . . . . Relay Couplers Released . | . . . . . . . . . . . . . . . . . Fabnet Peak Effective % . | . . . . . . . . . . . . . . . . . Robots Rewired . | . . . . . . . . . . . . . . . . . Allies Hacked 1 | . . . . . . . . . . . . . . . 1 . Hacks Repelled . | . . . . . . . . . . . . . . . . . Allies | -11 -10 -10 -10 -9 -8 -7 -6 -6 -6 -6 -5 -5 -5 -5 -4 -4 -------- Run | Yrd Mat Min Exi Min Mat Fac Fac Was Fac DSF Fac Was Fac DSF Fac Upp Total Allies 23 | . . . . 2 . . . . . . . 20 . . . 1 Largest Group 20 | . . . . 2 2 . . . . . . 20 19 19 16 1 Highest-Rated Group 772 | . . . . 49 49 . . . . . . 772 726 726 647 165 Highest-Rated Ally 165 | . . . . 31 31 . . . . . . 50 50 50 50 165 Total Orders . | . . . . . . . . . . . . . . . . . Ally Attacks 228 | . . . . . 7 . . . . . . 5 . 59 157 . Total Damage 5500 | . . . . . 105 . . . . . . 156 . 2063 3176 . Kills 26 | . . . . . 1 . . . . . . 1 . 8 16 . Allies Corrupted . | . . . . . . . . . . . . . . . . . Allies Melted . | . . . . . . . . . . . . . . . . . Intel | -11 -10 -10 -10 -9 -8 -7 -6 -6 -6 -6 -5 -5 -5 -5 -4 -4 ------- Run | Yrd Mat Min Exi Min Mat Fac Fac Was Fac DSF Fac Was Fac DSF Fac Upp Robot Analysis Total . | . . . . . . . . . . . . . . . . . Derelict Logs Recovered 3 | . . . . 1 . . . . . . . . . . . 2 Drone Launches . | . . . . . . . . . . . . . . . . . Drone Recoveries . | . . . . . . . . . . . . . . . . . Exploration | -11 -10 -10 -10 -9 -8 -7 -6 -6 -6 -6 -5 -5 -5 -5 -4 -4 ------------- Run | Yrd Mat Min Exi Min Mat Fac Fac Was Fac DSF Fac Was Fac DSF Fac Upp Turns Passed 6142 | 118 98 198 264 265 984 248 240 84 2 45 1492 673 33 162 546 690 Spaces Moved 4098 | 71 65 162 217 209 674 184 120 106 3 82 847 385 17 80 248 628 Core 734 | 4 . . . . . . . 73 3 82 215 . . . . 357 Treads 582 | . . . . . . . . . . . . 139 17 80 248 98 Legs 2326 | 67 65 162 217 209 674 184 120 33 . . 499 7 . . . 89 Wheels 443 | . . . . . . . . . . . 133 238 . . . 72 Hover 1 | . . . . . . . . . . . . 1 . . . . Flight 12 | . . . . . . . . . . . . . . . . 12 Fastest Speed 35 | 50 120 120 120 120 113 113 122 50 50 50 50 155 160 160 160 35 Average Speed 124 | 123 120 120 120 120 115 118 122 73 50 50 139 166 160 160 175 88 Slowest Speed 565 | 190 120 120 120 120 123 123 122 190 50 50 400 565 160 160 240 300 Overloaded Moves . | . . . . . . . . . . . . . . . . . Propulsion Burnouts . | . . . . . . . . . . . . . . . . . Robots Hopped 4 | . . . . . . . . . . . . . . . . 4 Cave-ins Triggered . | . . . . . . . . . . . . . . . . . Exploration Rate (%) 39 | 4 20 27 43 55 48 5 4 93 . 68 15 95 1 74 9 71 Regions Visited 16 Branch Regions 4 Pre-discovered Areas 4 | . . 1 . 1 . . . . . . . . . . . 2 Known Exits Taken 2 | . . . . . . . . . 1 . . . 1 . . . Unknown Exits Taken 8 | 1 1 1 1 1 1 1 . . . . . . . . 1 . Scrap Searched 3 | . . 1 . 2 . . . . . . . . . . . . Spaces Dug 6 | . . . . . 6 . . . . . . . . . . . Terrain Destroyed 71 | . . . . . 20 . . . . . 38 . . . 1 12 Melee . | . . . . . . . . . . . . . . . . . Projectile 20 | . . . . . . . . . . . 8 . . . 1 11 AOE 50 | . . . . . 20 . . . . . 30 . . . . . Terrain Rammed . | . . . . . . . . . . . . . . . . . Walls Destroyed . | . . . . . . . . . . . . . . . . . Machines Disabled . | . . . . . . . . . . . . . . . . . Actions | -11 -10 -10 -10 -9 -8 -7 -6 -6 -6 -6 -5 -5 -5 -5 -4 -4 --------- Run | Yrd Mat Min Exi Min Mat Fac Fac Was Fac DSF Fac Was Fac DSF Fac Upp Total 4868 | 87 72 164 219 221 812 211 213 111 2 84 1078 416 23 113 319 723 Wait 361 | . . . . 7 41 . 82 . . . 118 11 7 32 31 32 Move 4077 | 70 64 161 216 208 673 183 120 105 2 81 847 384 16 79 247 621 Hop 3 | . . . . . . . . . . . . . . . . 3 Pick Up 69 | 4 1 . 1 . 12 6 2 3 . 1 14 6 . . 5 14 Fast Attach 39 | 7 . . . . . . 2 2 . 2 11 3 . . 5 7 Attach 47 | . . . . . 4 2 2 1 . . 16 1 . . 1 20 Detach 6 | . . . . . . . . . . . 4 2 . . . . Swap 47 | 1 1 1 2 1 17 7 3 . . . 1 5 . 2 4 2 Drop 33 | . . . . . 14 6 2 . . . 2 2 . . 7 . Fire 116 | 5 6 . . . 36 3 . . . . 24 . . . 18 24 Melee 27 | . . . . . . . . . . . 27 . . . . . Ram 6 | . . . . . . . . . . . 6 . . . . . Kick 34 | . . 2 . 5 15 4 . . . . 8 . . . . . Crush 1 | . . . . . . . . . . . . . . . 1 . Escape Stasis . | . . . . . . . . . . . . . . . . . Rewire 2 | . . . . . . . . . . . . 2 . . . . Trap . | . . . . . . . . . . . . . . . . . Miscellaneous . | . . . . . . . . . . . . . . . . . Route ------- -11/Scrapyard -10/Materials -10/Mines (discovered 2 exits: [*Mat] / *Exi) -10/Exiles -9/Mines -8/Materials -7/Factory -6/Factory -6/Waste -6/Factory -6/DSF -5/Factory -5/Waste -5/Factory -5/DSF -4/Factory -4/Upper Caves History --------- Turn | Location | Event 32 | -11/Scrapyard | Discovered new exit (range 15) 119 | -11/Scrapyard | Entered Materials 201 | -10/Materials | Discovered new exit (range 12) 217 | -10/Materials | Entered Mines 285 | -10/Mines | Discovered new exit (range 15) 326 | -10/Mines | Learned location of Storage (-9) 334 | -10/Mines | Build established: Mutant 409 | -10/Mines | Deemed a non-threat by the Exiles lab entrance 410 | -10/Mines | Discovered new exit (range 5) 415 | -10/Mines | Entered Exiles 433 | -10/Exiles | Discovered new exit (range 15) 448 | -10/Exiles | Met 8R-AWN 466 | -10/Exiles | Met EX-HEX 501 | -10/Exiles | Met EX-BIN 515 | -10/Exiles | Aligned with FarCom system 516 | -10/Exiles | Given EX-Vault access code 545 | -10/Exiles | Opened EX-Vault 553 | -10/Exiles | Found Cloak of Protection 580 | -10/Exiles | Warned to stay clear of 0b10 Research branches 679 | -10/Exiles | Left Exiles lab with Cloak of Protection 679 | -10/Exiles | Entered Mines 699 | -9/Mines | Met a Derelict bent on vengeance 901 | -9/Mines | Discovered new exit (range 6) 944 | -9/Mines | Entered Materials 944 | -8/Materials | Accompanied by 2 allies 944 | -8/Materials | Evolved 4 slots: Power x1, Propulsion x1, Utility x2 949 | -8/Materials | Led the pair of lost Derelicts to an unsafe place 1658 | -8/Materials | Garrison activated, responded to threat 1793 | -8/Materials | Discovered new exit (range 16) 1928 | -8/Materials | Entered Factory 1928 | -7/Factory | Evolved 2 slots: Utility x2 2169 | -7/Factory | Discovered new exit (range 6) 2176 | -7/Factory | Entered another Factory area 2176 | -6/Factory | Evolved 2 slots: Propulsion x1, Utility x1 2243 | -6/Factory | Repaired Imp. Weapon Shielding 2289 | -6/Factory | Repaired Mak. Power Source 2416 | -6/Factory | Sucked down chute 2416 | -6/Factory | Entered Waste 2436 | -6/Waste | Spotted C-40 Crusher 2446 | -6/Waste | Spotted C-40 Crusher 2453 | -6/Waste | Spotted C-40 Crusher 2453 | -6/Waste | Spotted C-40 Crusher 2456 | -6/Waste | Crushed by Compactor (1 part destroyed, 2 dropped) 2460 | -6/Waste | Crushed by Compactor (1 part destroyed, 2 dropped) 2460 | -6/Waste | Released all parts (9) 2471 | -6/Waste | Spotted C-40 Crusher 2494 | -6/Waste | Discovered new exit (range 12) 2500 | -6/Waste | Entered Factory 2502 | -6/Factory | Identified exit to DSF 2502 | -6/Factory | Entered DSF 2519 | -6/DSF | Additional patrols routed to DSF 2538 | -6/DSF | Discovered new exit (range 15) 2547 | -6/DSF | Entered Factory 2547 | -5/Factory | Evolved 2 slots: Utility x1, Weapon x1 2770 | -5/Factory | Build established: Hacker-Mutant 3318 | -5/Factory | Lost 6 parts (5n1u) 3419 | -5/Factory | Core integrity fell below 50% 3456 | -5/Factory | Lost 5 parts (1p1n2u1w) 3707 | -5/Factory | Build established: Mutant 3779 | -5/Factory | Core integrity fell below 20% 4039 | -5/Factory | Sucked down chute 4039 | -5/Factory | Entered Waste 4040 | -5/Waste | Joined by Warlord forces that had cleared the area 4160 | -5/Waste | Build established: Skirmisher 4529 | -5/Waste | A Compactor rumbled back to life 4529 | -5/Waste | Spotted C-40 Crusher 4529 | -5/Waste | Allies destroyed C-40 Crusher 4534 | -5/Waste | Found Damper Plating 4583 | -5/Waste | Found Damper Plating 4666 | -5/Waste | Discovered new exit (range 12) 4712 | -5/Waste | Entered Factory 4712 | -5/Factory | Accompanied by 19 allies 4735 | -5/Factory | Identified exit to DSF 4745 | -5/Factory | Entered DSF 4745 | -5/DSF | Accompanied by 19 allies 4777 | -5/DSF | Additional patrols routed to DSF 4864 | -5/DSF | Sterilization system engaged 4870 | -5/DSF | Discovered new exit (range 15) 4884 | -5/DSF | Ambient heat levels rising (+10) 4899 | -5/DSF | Ambient heat levels rising (+10) 4907 | -5/DSF | Entered Factory 4907 | -4/Factory | Accompanied by 16 allies 4907 | -4/Factory | Evolved 2 slots: Utility x2 4939 | -4/Factory | Garrison activated, responded to threat 4982 | -4/Factory | Lost 4 allies 5216 | -4/Factory | Build established: Scavenger-Tank 5248 | -4/Factory | Lost 10 allies 5408 | -4/Factory | Discovered new exit (range 15) 5453 | -4/Factory | Entered Upper Caves 5500 | -4/Upper Caves | Met a Warlord Commander 5502 | -4/Upper Caves | Warlord Commander delivered Encrypted Comm Array 5518 | -4/Upper Caves | Lost 6 parts (1n4u1w) 5538 | -4/Upper Caves | Found Encrypted Comm Array 5670 | -4/Upper Caves | Attracted the attention of an 0b10 checkpoint 5679 | -4/Upper Caves | Released all parts (15) 5699 | -4/Upper Caves | Learned location of Testing (-3) 5710 | -4/Upper Caves | Lost 3 parts (1n1u1w) 5988 | -4/Upper Caves | Released all parts (10) 6025 | -4/Upper Caves | Core integrity fell below 50% 6039 | -4/Upper Caves | Learned Research trap positions 6110 | -4/Upper Caves | Attracted the attention of an 0b10 outpost 6116 | -4/Upper Caves | Core integrity fell below 20% 6143 | -4/Upper Caves | Destroyed by G-67 Veteran with Field Laser Last Messages --------------- 06109_ Slug penetrates Wall. 06110_ Y-72 Warden: "DETECTED UNIDENTIFIED DERELICT." 06110_ Penetrated by Slug. A strange signal echoes through the caves. 06114_ Y-72 Warden: "REQUESTING BACKUP." 06115_ Slug penetrates Wall. 06117_ System corrupted: IFF burst signal emitted. 06129_ S-27 Virus destroyed. 06130_ Acquired 23 matter. 06133_ Slug penetrates L-61 Swordsman. 06133_ Imp. Weapon Cycler destroyed. 06135_ Lgt. Nuclear Core fries itself beyond repair. 06136_ Hvy. Beamcaster destroyed. 06136_ Acquired VTOL Module. 06138_ Imp. Kinecellerator severed. 06139_ Penetrated by Slug. 06139_ Lgt. Fission Core destroyed. 06141_ Slug penetrates H-77 Assassin. 06141_ Slug penetrates Wall. [Achievement: Achiever] Map ----- +----------------------------------------------------+ | ??????????????????????????????????###????????????? | | ?????????????????????#????###??#### ##??????####?? | | ????????????????????? ???? ### ##?????# ### | | ????????????????????? ????? ### #####?#% | | ????????????????????? ?????# ##### #### | | ????????????????????? ?????# ##??# % %%% | | ???????????????????## ##???# ##?# | | ???????????????????? # #???# #### ### | | ??????? ??????????? #??## #?# % ### %% % | | ??????? ???????????# #?## ### %### % | | ??????? ??????????# ### ### ## % % | | ??????? ??????????# ## ## ## | | ??????# ??????????# # % | | ?????## ########?## ###### | | ?????# ### ##????## ### ### %% | | ????## ## ####??????# ## #?## ## | | ??### # #g# #?????????# #??# #####? | | ?## ### ### ##????????#%% ##??###????? | | ?# #" ???# ##??????# % %#??????????? | | ?# #" ????# #????? % #?????????? | | ?# #??????# #???? #????????? | | ## #??????# ##??### %## #???????? | | # ######## ## ###??# #?# ??????? | | # ## ##?##%%% #??# ?????? | | # #### # #??# % ??? ????? | | # ###?# ## g@ ##?## % ????# #???? | | ## #???# "## ##?# ????? ##???? | | ?###????# ### #######b #?# % % ????? #????? | | ????????# ##?####???### ##?# ## %???????????? | | ????????### #????????## ##???#??# ???????????? | | ??????????###????????# #????????#???????###"" | | ?????????????????????# h ##????????????????# ## | | ?????????????????????# lY##?????????????????# # | | ?????????????????????# h#??????????????????# | | ?????????????????????## l###????????????????# | | ??????????????????????### #????????????????## | | ????????????????????????#! ##?????????????????## | | ????????????????????????####???????????????????### | | ?????????????????????????????????????????????????? | | ?????????????????????????????????????????????????? | | ?????????????????????????????????????????????????? | | ?????????????????????????????????????????????????? | | ?????????????????????????????????????????????????? | | ?????????????????????????????????????????????????? | | ?????????????????????????????????????????????????? | | ?????????????????????????????????????????????????? | | ?????????????????????????????????????????????????? | | ?????????????????????????????????????????????????? | | ?????????????????????????????????????????????????? | | ?????????????????????????????????????????????????? | +----------------------------------------------------+ Best States ------------- Heat Dissipation 81 Energy Generation 35 Energy Capacity 540 Matter Stores 300 Matter Capacity 300 Sight Range 16 Terrain Scan Range 16 Terrain Scan Density 10 Cloak Strength 5 Additional Mass Support 9 EM Shielding 3 Armor Coverage 1750 Resistance: KI 20 Resistance: TH 25 Resistance: EM 90 Core Shielding 20 Weapon Shielding 66 Weapon Cycling 30 Phase Shifting 10 Evasion (%) 63 Melee Accuracy 6 Launcher Accuracy 30 Recoil Reduction 4 Kinecelleration 40 Offensive Hacking 20 Item Schematics ----------------- None Robot Schematics ------------------ None Fabricated ------------ Nothing Alien Tech Used ----------------- None Achievements -------------- Achiever Below Respectable Loadout Challenges ------------ None Game ------ Seed OmegaDeliveryInsulator Manual? 0 Play Time 01:26:55 Cumulative 27.2 hours Start 2024.08.09 @ 00:57:48 End 2024.08.09 @ 02:25:09 Sessions 1 Manual Loads 0 Difficulty Rogue Special Mode None Game No. 40 Rogue 40 Adventurer 0 Explorer 0 Win Type - Total 0 Types 0/0/0/0/0/0/0/0/0 Lore% 17 Gallery% 34 Achievement% 25 Wizard Run 0 Options --------- Layout 0 ASCII 0 Keyboard 0 Movement Arrows Keybinds 0 Fullscreen 2 Font 24/Smallcaps Map View 76x50 Zoom Use 0% Tactical HUD 1 Map Filters NONE Filters NONE Steam 1 RUN: c667b27e-a87e-4a88-8473-29c993098d84